[Event "BL Meisterschaftsturnier 2020"]
[Site "Karlsruhe"]
[Date "2020.09.16"]
[Round "1.16"]
[White "Rudolf, Henrik"]
[Black "Lamby, Philipp"]
[Result "1/2-1/2"]
[ECO "C77"]
[WhiteElo "2295"]
[BlackElo "2130"]
[Annotator "NA RC"]
[PlyCount "68"]
[EventDate "2020.09.16"]
[EventType "team-tourn"]
[EventCountry "GER"]
[SourceTitle "playchess.com"]
[Source "ChessBase"]
[SourceQuality "1"]
[WhiteTeam "SF Berlin"]
[BlackTeam "Aachen"]
[TimeControl "40/5400+30:1800+30"]

1. e4 {[%emt 0:00:00]} e5 {[%emt 0:00:00]} 2. Nf3 {[%emt 0:00:00]} Nc6 {[%emt 0:00:03]} 3. Bb5 {[%emt 0:00:12]} a6 {[%emt 0:00:10]} 4. Ba4 {[%emt 0:00:05]} Nf6 {[%emt 0:00:22]} 5. d3 {[%emt 0:02:54]} b5 {[%emt 0:00:22]} 6. Bb3 {[%emt 0:00:05]} Bc5 {[%emt 0:00:15]} 7. O-O {[%emt 0:02:59]} d6 {[%emt 0:02:03]} 8. c3 {[%emt 0:05:28]} Bb6 {[%emt 0:06:48]} 9. Re1 {[%emt 0:05:59]} h6 {[%emt 0:16:53]} 10. h3 {[%emt 0:09:53]} O-O {[%emt 0:00:13]} 11. a4 {[%emt 0:05:02]} Bd7 {[%emt 0:08:57]} 12. Nbd2 {[%emt 0:08:54]} Ne7 {[%emt 0:02:44]} 13. Nf1 {[%emt 0:07:26]} Ng6 {[%emt 0:01:14]} 14. Ng3 {[%emt 0:05:52]} Qc8 {[%emt 0:08:03]} 15. d4 {[%emt 0:06:28]} Bxh3 {[%emt 0:19:44]} (15... Rd8 $14) 16. gxh3 {[%emt 0:00:55]} Qxh3 {[%emt 0:02:52]} 17. Qd3 {[%emt 0:00:46]} exd4 {[%emt 0:20:51]} 18. cxd4 {[%emt 0:01:35]} Ne5 $16 {[%emt 0:00:52]} 19. Nxe5 {[%emt 0:09:56]} dxe5 {[%emt 0:00:06]} 20. Qf1 {[%emt 0:04:35]} Qxf1+ {[%emt 0:01:52]} 21. Kxf1 {[%emt 0:00:07]} exd4 {[%emt 0:00:56]} 22. e5 {[%emt 0:01:21]} Nh7 {[%emt 0:02:06]} 23. axb5 {[%emt 0:09:59]} axb5 {[%emt 0:00:04]} 24. Rxa8 {[%emt 0:00:22]} Rxa8 {[%emt 0:00:05]} 25. e6 {[%emt 0:00:14]} fxe6 {[%emt 0:00:14]} 26. Rxe6 {[%emt 0:00:28]} Kh8 {[%emt 0:00:13]} 27. Kg2 {[%emt 0:08:11]} d3 {[%emt 0:03:27]} 28. Ne4 {[%emt 0:00:31]} Ba5 {[%emt 0:00:24]} 29. Bf4 {[%emt 0:02:43]} Nf8 {[%emt 0:01:44]} 30. Rc6 {[%emt 0:00:39]} Re8 {[%emt 0:00:07]} 31. f3 {[%emt 0:00:22]} Kh7 32. Ra6 {[%emt 0:00:28]} Bb6 {[%emt 0:00:48]} 33. Bd2 {[%emt 0:00:18]} Ne6 {[%emt 0:00:12]} 34. Ra1 {[%emt 0:00:25]} Nd4 {[%emt 0:00:27]} 1/2-1/2